[Event "28th Hit Open-A 2024"]
[Site "Nova Gorica"]
[Date "2024.01.29"]
[Round "5.26"]
[White "Ongut, Tamas Gunes"]
[Black "Capaliku, Aleks"]
[Result "1-0"]
[ECO "A43"]
[WhiteElo "2310"]
[BlackElo "1913"]
[Annotator "RC"]
[PlyCount "45"]
[EventDate "2024.01.22"]
[EventType "swiss"]
[EventCountry "SLO"]
[SourceTitle "playchess.com"]
[Source "ChessBase"]
[SourceQuality "1"]
[TimeControl "5400+30"]

1. d4 {[%emt 0:00:04]} e6 {[%emt 0:09:17]} 2. e4 {[%emt 0:00:16]} c5 {[%emt 0:02:26]} 3. d5 {[%emt 0:00:14]} d6 {[%emt 0:01:24]} 4. Nc3 {[%emt 0:00:27]} Nf6 {[%emt 0:00:15]} 5. Nf3 {[%emt 0:00:43]} Be7 {[%emt 0:00:59]} 6. Bb5+ {[%emt 0:00:23]} Bd7 {[%emt 0:00:32]} 7. a4 {[%emt 0:06:09]} O-O {[%emt 0:06:18]} 8. O-O {[%emt 0:00:09]} e5 {[%emt 0:05:55]} 9. Nd2 {[%emt 0:03:41]} Bxb5 {[%emt 0:05:30]} 10. axb5 {[%emt 0:00:10]} Nbd7 {[%emt 0:00:57]} 11. Nc4 {[%emt 0:00:19]} Nb6 {[%emt 0:04:26]} 12. Ne3 {[%emt 0:01:53]} Qd7 {[%emt 0:03:20]} 13. Nf5 {[%emt 0:01:15]} a6 {[%emt 0:02:06]} 14. bxa6 {[%emt 0:00:46]} Rxa6 {[%emt 0:00:27]} 15. Rxa6 {[%emt 0:00:10]} bxa6 {[%emt 0:00:02]} 16. f4 {[%emt 0:00:40]} Bd8 {[%emt 0:15:11]} 17. fxe5 {[%emt 0:00:40]} dxe5 {[%emt 0:00:15]} 18. Qf3 {[%emt 0:08:44]} Ne8 {[%emt 0:12:20]} 19. Be3 {[%emt 0:01:19]} Nc4 {[%emt 0:14:48]} 20. Bxc5 {[%emt 0:02:10]} Bb6 {[%emt 0:00:55]} 21. Bxb6 {[%emt 0:00:09]} Nxb6 {[%emt 0:00:02]} 22. Qd3 {[%emt 0:03:27]} Nc7 {[%emt 0:03:38]} 23. Nxg7 {[%emt 0:01:14]} 1-0

[Event "28th Hit Open-A 2024"]
[Site "Nova Gorica"]
[Date "2024.01.29"]
[Round "5.27"]
[White "Herega, Nejc"]
[Black "Veselic, Maks"]
[Result "1/2-1/2"]
[ECO "A18"]
[WhiteElo "2257"]
[BlackElo "1874"]
[Annotator "TA"]
[PlyCount "34"]
[EventDate "2024.01.22"]
[EventType "swiss"]
[EventCountry "SLO"]
[SourceTitle "playchess.com"]
[Source "ChessBase"]
[SourceQuality "1"]
[TimeControl "5400+30"]

{[%evp 12,34,41,44,26,-73,-44,-37,-27,-29,-25,-30,-21,-27,-19,-18,-20,-23,-24,-30,-43,-14,-14,-72,-80]} 1. c4 {[%emt 0:00:34]} Nf6 {[%emt 0:00:38]} 2. Nc3 {[%emt 0:00:31]} e6 {[%emt 0:00:28]} 3. e4 {[%emt 0:00:10]} d5 {[%emt 0:00:42]} 4. e5 {[%emt 0:00:40]} d4 {[%emt 0:00:29]} 5. exf6 {[%emt 0:00:32]} dxc3 {[%emt 0:00:02]} 6. bxc3 {[%emt 0:01:54]} Qxf6 {[%emt 0:01:12]} 7. d4 {[%emt 0:00:41]} c5 {[%emt 0:02:17]} 8. Ba3 {[%emt 0:10:10]} (8. Nf3 $11) 8... Nc6 {[%emt 0:04:10]} 9. Nf3 {[%emt 0:02:49]} Be7 {[%emt 0:03:51] Black is slightly better.} 10. Be2 {[%emt 0:02:21]} O-O {[%emt 0:01:49]} 11. O-O {[%emt 0:00:57]} Rd8 {[%emt 0:01:41]} 12. Bb2 {[%emt 0:06:12]} cxd4 {[%emt 0:05:29]} 13. cxd4 {[%emt 0:01:07]} Bc5 {[%emt 0:00:23]} 14. Qa4 {[%emt 0:15:07]} Nxd4 {[%emt 0:03:40]} 15. Nxd4 {[%emt 0:03:32]} Bxd4 {[%emt 0:00:10]} 16. Bxd4 {[%emt 0:01:32]} Qxd4 {[%emt 0:00:07]} 17. Rad1 {[%emt 0:01:16]} (17. Qb4 $11 {keeps the balance.}) 17... Bd7 $1 {[%emt 0:00:51] Weighted Error Value: White=0.28 (precise) /Black=0.08 (flawless) .  Mistake:       	White=2     	---        Inaccurate:     	---       	Black=1      OK:         	White=3     	Black=1      Strong:       	---       	Black=1} 1/2-1/2

[Event "28th Hit Open-A 2024"]
[Site "Nova Gorica"]
[Date "2024.01.29"]
[Round "5.28"]
[White "Garsky, Vladyslav"]
[Black "Tonel, Giulia"]
[Result "1-0"]
[ECO "E67"]
[WhiteElo "2186"]
[BlackElo "1851"]
[Annotator "TA"]
[PlyCount "33"]
[EventDate "2024.01.22"]
[EventType "swiss"]
[EventCountry "SLO"]
[SourceTitle "playchess.com"]
[Source "ChessBase"]
[SourceQuality "1"]
[TimeControl "5400+30"]

{[%evp 20,33,30,6,64,77,142,122,128,138,221,167,495,451,442,406]} 1. d4 {[%emt 0:05:51]} Nf6 {[%emt 0:00:13]} 2. Nf3 {[%emt 0:00:24]} g6 {[%emt 0:00:17]} 3. g3 {[%emt 0:00:07]} Bg7 {[%emt 0:00:34]} 4. Bg2 {[%emt 0:00:06]} d6 {[%emt 0:00:34]} 5. O-O {[%emt 0:00:12]} O-O {[%emt 0:02:00]} 6. c4 {[%emt 0:00:16]} Nbd7 {[%emt 0:01:08]} 7. Nc3 {[%emt 0:00:47]} e5 {[%emt 0:05:02]} 8. b3 {[%emt 0:02:37]} Re8 {[%emt 0:04:54]} 9. Bb2 {[%emt 0:03:20]} exd4 {[%emt 0:06:28]} 10. Nxd4 {[%emt 0:00:15]} Nc5 {[%emt 0:01:37]} 11. Qc2 {[%emt 0:04:45]} Ng4 {[%emt 0:12:13]} (11... h5 $11) 12. Rad1 $14 {[%emt 0:02:16]} Qg5 {[%emt 0:10:46] [#]} (12... a5 $142) 13. h3 $1 $16 {[%emt 0:10:21]} Nh6 {[%emt 0:05:49]} ({Avoid the trap} 13... Ne3 $2 14. fxe3 Qxg3 (14... Qxe3+ $2 {is the wrong capture.} 15. Kh2 $18) 15. Rf3 $18) 14. e4 {[%emt 0:13:32]} Qh5 {[%emt 0:11:33]} (14... c6 $16 {is a better defense.} 15. b4 Ne6) 15. Nd5 {[%emt 0:00:34]} Ne6 $2 {[%emt 0:09:59]} (15... c6) 16. Nxe6 {[%emt 0:04:12]} Bxe6 {[%emt 0:01:07]} 17. Bxg7 {[%emt 0:00:19] Black did not feel at home in the position after the opening.   Weighted Error Value: White=0.17 (very precise) /Black=0.95.  Mistake:       	---       	Black=3      OK:         	White=4     	Black=1} 1-0

[Event "28th Hit Open-A 2024"]
[Site "Nova Gorica"]
[Date "2024.01.29"]
[Round "5.29"]
[White "Caruso, Augusto"]
[Black "Pagano, Sergio"]
[Result "1-0"]
[ECO "B02"]
[WhiteElo "2159"]
[BlackElo "1821"]
[Annotator "RC"]
[PlyCount "59"]
[EventDate "2024.01.22"]
[EventType "swiss"]
[EventCountry "SLO"]
[SourceTitle "playchess.com"]
[Source "ChessBase"]
[SourceQuality "1"]
[TimeControl "5400+30"]

1. e4 {[%emt 0:00:10]} Nf6 {[%emt 0:00:21]} 2. e5 {[%emt 0:00:41]} Nd5 {[%emt 0:00:09]} 3. c4 {[%emt 0:03:18]} Nb6 {[%emt 0:00:08]} 4. c5 {[%emt 0:00:32]} Nd5 {[%emt 0:00:11]} 5. Bc4 {[%emt 0:00:12]} e6 {[%emt 0:01:37]} 6. Nc3 {[%emt 0:00:05]} Qg5 {[%emt 0:01:47]} 7. Bxd5 {[%emt 0:33:33]} exd5 {[%emt 0:01:17]} 8. Nf3 {[%emt 0:03:03]} Qxg2 {[%emt 0:07:24]} 9. Rg1 {[%emt 0:00:02]} Qh3 {[%emt 0:00:09]} 10. Nxd5 {[%emt 0:02:29]} Na6 {[%emt 0:01:09]} 11. d4 {[%emt 0:00:11]} b6 {[%emt 0:02:11]} 12. Rg3 {[%emt 0:07:32]} Qf5 {[%emt 0:04:55]} 13. Qe2 {[%emt 0:09:11]} Bb7 {[%emt 0:01:49]} 14. Ne3 {[%emt 0:02:11]} Qe4 {[%emt 0:02:33]} 15. Bd2 {[%emt 0:04:31]} bxc5 {[%emt 0:01:13]} 16. d5 {[%emt 0:00:17]} Nb4 {[%emt 0:01:21]} 17. Bxb4 {[%emt 0:05:25]} Qxb4+ {[%emt 0:01:59]} 18. Kf1 {[%emt 0:01:04]} Qb6 {[%emt 0:04:42]} 19. Kg1 {[%emt 0:00:16]} Ba6 {[%emt 0:05:58]} 20. Qc2 {[%emt 0:01:58]} Rb8 {[%emt 0:01:07]} 21. b3 {[%emt 0:00:21]} g6 {[%emt 0:01:31]} 22. Rc1 {[%emt 0:01:18]} Be7 {[%emt 0:05:16]} 23. d6 {[%emt 0:00:32]} cxd6 {[%emt 0:00:55]} 24. Nd5 {[%emt 0:01:54]} Qc6 {[%emt 0:00:55]} 25. Nxe7 {[%emt 0:07:34]} Kxe7 {[%emt 0:00:29]} 26. exd6+ {[%emt 0:00:03]} Qxd6 {[%emt 0:03:45]} 27. Rd1 {[%emt 0:02:17]} Qc7 {[%emt 0:01:48]} 28. Re1+ {[%emt 0:01:59]} Kd8 {[%emt 0:01:06]} 29. Qc3 {[%emt 0:00:48]} Re8 {[%emt 0:01:24]} 30. Qf6+ {[%emt 0:00:06]} 1-0

[Event "28th Hit Open-A 2024"]
[Site "Nova Gorica"]
[Date "2024.01.29"]
[Round "5.30"]
[White "Gricnik, Tine"]
[Black "Centrih, Aleks"]
[Result "0-1"]
[ECO "D37"]
[WhiteElo "1758"]
[BlackElo "2082"]
[Annotator "NA RC"]
[PlyCount "108"]
[EventDate "2024.01.22"]
[EventType "swiss"]
[EventCountry "SLO"]
[SourceTitle "playchess.com"]
[Source "ChessBase"]
[SourceQuality "1"]
[TimeControl "5400+30"]

1. d4 {[%emt 0:00:04]} Nf6 {[%emt 0:00:41]} 2. c4 {[%emt 0:00:06]} e6 {[%emt 0:00:05]} 3. Nc3 {[%emt 0:00:31]} d5 {[%emt 0:01:07]} 4. Nf3 {[%emt 0:00:14]} a6 {[%emt 0:00:07]} 5. g3 {[%emt 0:01:24]} dxc4 {[%emt 0:05:02]} 6. a4 {[%emt 0:02:52]} Nc6 {[%emt 0:07:37]} 7. e3 {[%emt 0:06:34]} Na5 {[%emt 0:02:21]} 8. Ne5 {[%emt 0:00:42]} Bb4 {[%emt 0:02:28]} 9. Bd2 {[%emt 0:04:45]} O-O {[%emt 0:15:38]} 10. Qc2 {[%emt 0:07:54]} Nb3 {[%emt 0:06:54]} 11. Rd1 {[%emt 0:02:52]} Bd7 {[%emt 0:12:02]} 12. Bxc4 {[%emt 0:02:51]} Nxd2 {[%emt 0:00:37]} 13. Rxd2 {[%emt 0:00:38]} Qe8 {[%emt 0:09:04]} 14. Nxd7 {[%emt 0:02:12]} Qxd7 {[%emt 0:00:52]} 15. O-O {[%emt 0:02:16]} Qe7 {[%emt 0:05:01]} 16. e4 {[%emt 0:03:30]} Rfd8 {[%emt 0:05:05]} 17. Rfd1 {[%emt 0:02:15]} c6 {[%emt 0:03:28]} 18. Re2 {[%emt 0:04:03]} Rac8 {[%emt 0:04:03]} 19. Qb3 {[%emt 0:01:44]} b5 {[%emt 0:07:24]} 20. axb5 {[%emt 0:02:02]} cxb5 {[%emt 0:02:36]} 21. Bd3 {[%emt 0:03:35]} Bxc3 {[%emt 0:00:12]} 22. bxc3 {[%emt 0:00:10]} e5 {[%emt 0:00:23]} 23. d5 {[%emt 0:00:35]} Qc5 {[%emt 0:00:27]} 24. Rc2 {[%emt 0:01:21]} Rd6 {[%emt 0:01:59]} 25. Rdc1 {[%emt 0:02:15]} h5 {[%emt 0:01:56]} 26. Qb4 {[%emt 0:00:17]} Nd7 {[%emt 0:02:10]} 27. Rb1 {[%emt 0:02:25]} Nb6 {[%emt 0:01:49]} 28. c4 {[%emt 0:06:11]} bxc4 {[%emt 0:01:19]} 29. Qxc5 {[%emt 0:02:01]} Rxc5 {[%emt 0:00:06]} 30. Bxc4 {[%emt 0:00:31]} f5 {[%emt 0:02:17]} 31. f3 {[%emt 0:02:12]} fxe4 {[%emt 0:00:24]} 32. fxe4 {[%emt 0:00:13]} Kh7 {[%emt 0:00:45]} 33. Rbc1 {[%emt 0:00:51]} a5 {[%emt 0:00:27]} 34. Ba2 {[%emt 0:00:16]} Rxc2 {[%emt 0:00:24]} 35. Rxc2 {[%emt 0:00:05]} Kg6 {[%emt 0:00:32]} 36. Rc6 {[%emt 0:00:08]} Rxc6 {[%emt 0:00:04]} 37. dxc6 {[%emt 0:00:04]} Kf6 {[%emt 0:00:05]} 38. Kf2 {[%emt 0:00:49]} Ke7 {[%emt 0:00:13]} 39. Ke3 {[%emt 0:00:08]} Kd6 {[%emt 0:00:06]} 40. Bf7 {[%emt 0:01:31]} h4 {[%emt 0:00:28]} 41. gxh4 {[%emt 0:03:40]} Kxc6 {[%emt 0:00:07]} 42. Kf3 {[%emt 0:00:19]} Kd6 {[%emt 0:02:18]} 43. Kg4 {[%emt 0:00:20]} Ke7 {[%emt 0:00:03]} 44. Ba2 {[%emt 0:00:46]} Kf6 {[%emt 0:00:06]} 45. h5 {[%emt 0:01:42]} Na4 {[%emt 0:00:30]} 46. Kf3 {[%emt 0:01:21]} Nc3 {[%emt 0:00:14]} 47. Bg8 {[%emt 0:05:37]} a4 {[%emt 0:00:04]} 48. h4 {[%emt 0:00:27]} a3 {[%emt 0:00:04]} 49. Bb3 {[%emt 0:00:27]} a2 {[%emt 0:00:05]} 50. Bxa2 {[%emt 0:00:02]} Nxa2 {[%emt 0:00:02]} 51. Kg4 {[%emt 0:00:09]} Nc3 {[%emt 0:00:09]} 52. h6 {[%emt 0:00:07]} gxh6 {[%emt 0:00:16]} 53. Kh5 {[%emt 0:00:04]} Kg7 {[%emt 0:00:21]} 54. Kg4 {[%emt 0:00:12]} Kg6 {[%emt 0:00:05]} 0-1

[Event "28th Hit Open-A 2024"]
[Site "Nova Gorica"]
[Date "2024.01.29"]
[Round "5.31"]
[White "Markocic, Tine"]
[Black "Vicic, Mark"]
[Result "1-0"]
[ECO "D02"]
[WhiteElo "2055"]
[BlackElo "1729"]
[Annotator "RC"]
[PlyCount "165"]
[EventDate "2024.01.22"]
[EventType "swiss"]
[EventCountry "SLO"]
[SourceTitle "playchess.com"]
[Source "ChessBase"]
[SourceQuality "1"]
[TimeControl "5400+30"]

1. d4 {[%emt 0:00:29]} d5 {[%emt 0:00:17]} 2. Bf4 {[%emt 0:00:00]} Nf6 {[%emt 0:00:00]} 3. e3 {[%emt 0:00:00]} c5 {[%emt 0:01:11]} 4. c3 {[%emt 0:03:22]} Nc6 {[%emt 0:02:30]} 5. Nd2 {[%emt 0:01:57]} e6 {[%emt 0:03:08]} 6. Ngf3 {[%emt 0:01:24]} Be7 {[%emt 0:00:41]} 7. Bd3 {[%emt 0:01:34]} Nh5 {[%emt 0:06:13]} 8. Be5 {[%emt 0:07:38]} Bd6 {[%emt 0:03:28]} 9. Qe2 {[%emt 0:22:41]} cxd4 {[%emt 0:07:31]} 10. cxd4 {[%emt 0:04:52]} Nf6 {[%emt 0:15:04]} 11. Bxd6 {[%emt 0:08:02]} Qxd6 {[%emt 0:00:03]} 12. a3 {[%emt 0:00:10]} Nd7 {[%emt 0:12:08]} 13. O-O {[%emt 0:02:52]} h6 {[%emt 0:02:24]} 14. Rfd1 {[%emt 0:04:04]} O-O {[%emt 0:02:24]} 15. Rac1 {[%emt 0:01:18]} a6 {[%emt 0:03:42]} 16. h3 {[%emt 0:02:09]} b5 {[%emt 0:05:57]} 17. e4 {[%emt 0:02:27]} Na5 {[%emt 0:03:37]} 18. a4 {[%emt 0:14:35]} Nc4 {[%emt 0:03:46]} 19. Nf1 {[%emt 0:02:18]} Qb4 {[%emt 0:02:18]} 20. axb5 {[%emt 0:04:33]} axb5 {[%emt 0:01:34]} 21. Ne3 {[%emt 0:02:25]} Bb7 {[%emt 0:01:43]} 22. b3 {[%emt 0:00:20]} Qxb3 {[%emt 0:03:41]} 23. Rb1 {[%emt 0:00:13]} Qa4 {[%emt 0:00:46]} 24. Nxc4 {[%emt 0:00:50]} dxc4 {[%emt 0:01:17]} 25. Bxc4 {[%emt 0:00:12]} Bxe4 {[%emt 0:02:14]} 26. Bxb5 {[%emt 0:00:39]} Bxf3 {[%emt 0:00:33]} 27. Qxf3 {[%emt 0:00:15]} Qa7 {[%emt 0:00:15]} 28. Bxd7 {[%emt 0:07:00]} Qxd7 {[%emt 0:00:03]} 29. Rb7 {[%emt 0:00:08]} Qd6 {[%emt 0:02:01]} 30. Rxf7 {[%emt 0:00:44]} Rxf7 {[%emt 0:02:46]} 31. Qxa8+ {[%emt 0:00:06]} Rf8 {[%emt 0:01:13]} 32. Qe4 {[%emt 0:00:28]} Qd5 {[%emt 0:04:38]} 33. Re1 {[%emt 0:00:58]} Rd8 {[%emt 0:02:48]} 34. Qxd5 {[%emt 0:00:51]} Rxd5 {[%emt 0:00:04]} 35. Re4 {[%emt 0:00:06]} Kf7 {[%emt 0:00:31]} 36. Kf1 {[%emt 0:00:48]} Ra5 {[%emt 0:01:11]} 37. Ke2 {[%emt 0:00:04]} Ra3 {[%emt 0:00:30]} 38. Re3 {[%emt 0:00:07]} Ra2+ {[%emt 0:00:44]} 39. Kf3 {[%emt 0:00:09]} Kf6 {[%emt 0:00:16]} 40. Re2 {[%emt 0:00:59]} Ra4 {[%emt 0:00:57]} 41. Re4 {[%emt 0:02:11]} Ra2 {[%emt 0:00:49]} 42. Rf4+ {[%emt 0:02:08]} Kg5 {[%emt 0:01:39]} 43. g3 {[%emt 0:01:40]} Rd2 {[%emt 0:01:02]} 44. Ke3 {[%emt 0:00:08]} Rd1 {[%emt 0:00:24]} 45. Rf3 {[%emt 0:01:18]} Kg6 {[%emt 0:01:17]} 46. Ke4 {[%emt 0:00:17]} Re1+ {[%emt 0:00:26]} 47. Re3 {[%emt 0:00:05]} Rd1 {[%emt 0:00:24]} 48. Ke5 {[%emt 0:00:44]} Kf7 {[%emt 0:00:23]} 49. Ra3 {[%emt 0:00:26]} Rd2 {[%emt 0:00:47]} 50. f4 {[%emt 0:01:19]} Re2+ {[%emt 0:00:48]} 51. Kd6 {[%emt 0:00:05]} Rd2 {[%emt 0:00:06]} 52. Ke5 {[%emt 0:00:04]} Re2+ {[%emt 0:00:03]} 53. Kd6 {[%emt 0:00:04]} Rd2 {[%emt 0:00:06]} 54. Kc5 {[%emt 0:00:47]} Rc2+ {[%emt 0:00:18]} 55. Kb4 {[%emt 0:00:12]} Rh2 {[%emt 0:01:36]} 56. g4 {[%emt 0:00:59]} Rf2 {[%emt 0:00:14]} 57. f5 {[%emt 0:00:04]} exf5 {[%emt 0:00:10]} 58. gxf5 {[%emt 0:00:05]} Rxf5 {[%emt 0:00:08]} 59. Re3 {[%emt 0:00:05]} g5 {[%emt 0:01:28]} 60. Kc4 {[%emt 0:00:23]} Rf1 {[%emt 0:00:45]} 61. d5 {[%emt 0:00:35]} Rd1 {[%emt 0:00:49]} 62. Kc5 {[%emt 0:00:05]} h5 {[%emt 0:00:31]} 63. d6 {[%emt 0:00:22]} g4 {[%emt 0:00:32]} 64. hxg4 {[%emt 0:00:28]} hxg4 {[%emt 0:00:02]} 65. Kc6 {[%emt 0:00:11]} g3 {[%emt 0:00:53]} 66. Rxg3 {[%emt 0:00:44]} Rc1+ {[%emt 0:00:43]} 67. Kd7 {[%emt 0:00:06]} Rf1 {[%emt 0:00:30]} 68. Re3 {[%emt 0:00:10]} Rf2 {[%emt 0:00:20]} 69. Kd8 {[%emt 0:01:03]} Rf1 {[%emt 0:00:24]} 70. d7 {[%emt 0:00:40]} Rf2 {[%emt 0:00:48]} 71. Re7+ {[%emt 0:01:52]} Kf8 {[%emt 0:00:24]} 72. Re5 {[%emt 0:00:19]} Kf7 {[%emt 0:00:45]} 73. Re7+ {[%emt 0:01:24]} Kf8 {[%emt 0:00:02]} 74. Re1 {[%emt 0:00:06]} Kf7 {[%emt 0:00:11]} 75. Rc1 {[%emt 0:00:05]} Ra2 {[%emt 0:01:13]} 76. Rf1+ {[%emt 0:00:06]} Kg7 {[%emt 0:00:28]} 77. Rf5 {[%emt 0:01:23]} Kg6 {[%emt 0:00:34]} 78. Rc5 {[%emt 0:00:04]} Kf7 {[%emt 0:00:33]} 79. Kc7 {[%emt 0:00:44]} Ra7+ {[%emt 0:00:27]} 80. Kd6 {[%emt 0:00:07]} Ra6+ {[%emt 0:00:37]} 81. Rc6 {[%emt 0:00:06]} Ra8 {[%emt 0:00:26]} 82. Rc8 {[%emt 0:00:06]} Ra6+ {[%emt 0:00:13]} 83. Kc5 {[%emt 0:00:06]} 1-0

[Event "28th Hit Open-A 2024"]
[Site "Nova Gorica"]
[Date "2024.01.29"]
[Round "5.32"]
[White "Zlatanovic, Srdjan"]
[Black "Mestek, Igor"]
[Result "1/2-1/2"]
[ECO "D02"]
[WhiteElo "1675"]
[BlackElo "2080"]
[Annotator "NA RC"]
[PlyCount "92"]
[EventDate "2024.01.22"]
[EventType "swiss"]
[EventCountry "SLO"]
[SourceTitle "playchess.com"]
[Source "ChessBase"]
[SourceQuality "1"]
[TimeControl "5400+30"]

1. d4 {[%emt 0:02:13]} d5 {[%emt 0:00:42]} 2. Nf3 {[%emt 0:00:06]} e6 {[%emt 0:02:54]} 3. Bg5 {[%emt 0:00:26]} Be7 {[%emt 0:00:48]} 4. Bf4 {[%emt 0:00:50]} Nf6 {[%emt 0:03:21]} 5. e3 {[%emt 0:00:10]} Nh5 {[%emt 0:02:23]} 6. Bg3 {[%emt 0:00:02]} Nd7 {[%emt 0:01:14]} 7. Nbd2 {[%emt 0:00:35]} c5 {[%emt 0:04:34]} 8. Bb5 {[%emt 0:06:38]} Qb6 {[%emt 0:04:25]} 9. a4 {[%emt 0:02:59]} Nxg3 {[%emt 0:05:32]} 10. hxg3 {[%emt 0:01:35]} a6 {[%emt 0:04:21]} 11. Bxd7+ {[%emt 0:07:53]} Bxd7 {[%emt 0:00:10]} 12. b3 {[%emt 0:00:45]} cxd4 {[%emt 0:01:02]} 13. Nxd4 {[%emt 0:00:46]} Bf6 {[%emt 0:04:05]} 14. c3 {[%emt 0:04:32]} Rc8 {[%emt 0:00:36]} 15. Rc1 {[%emt 0:00:45]} e5 {[%emt 0:02:33]} 16. Ne2 {[%emt 0:06:43]} O-O {[%emt 0:16:08]} 17. c4 {[%emt 0:01:48]} Be6 {[%emt 0:05:37]} 18. Qc2 {[%emt 0:03:19]} g6 {[%emt 0:01:31]} 19. O-O {[%emt 0:00:22]} Bf5 {[%emt 0:02:28]} 20. e4 {[%emt 0:04:47]} dxe4 {[%emt 0:01:50]} 21. Nxe4 {[%emt 0:02:23]} Bg5 {[%emt 0:01:08]} 22. Rcd1 {[%emt 0:01:18]} Rfd8 {[%emt 0:01:29]} 23. N2c3 {[%emt 0:01:17]} Qc6 {[%emt 0:07:01]} 24. g4 {[%emt 0:01:36]} Bxe4 {[%emt 0:01:40]} 25. Nxe4 {[%emt 0:01:38]} Be7 {[%emt 0:00:11]} 26. Nc3 {[%emt 0:05:02]} Rd4 {[%emt 0:00:55]} 27. Rxd4 {[%emt 0:02:01]} exd4 {[%emt 0:00:07]} 28. Ne2 {[%emt 0:00:10]} Rd8 {[%emt 0:04:33]} 29. Nf4 {[%emt 0:04:27]} Bg5 {[%emt 0:01:40]} 30. Nd3 {[%emt 0:02:21]} Re8 {[%emt 0:02:12]} 31. Qd1 {[%emt 0:01:24]} Bf6 {[%emt 0:00:30]} 32. Re1 {[%emt 0:00:54]} Re6 {[%emt 0:03:42]} 33. Qf3 {[%emt 0:04:08]} Rxe1+ {[%emt 0:05:12]} 34. Nxe1 {[%emt 0:00:06]} Qb6 {[%emt 0:00:14]} 35. Qd1 {[%emt 0:04:03]} Qe6 {[%emt 0:01:02]} 36. Nd3 {[%emt 0:00:22]} Kg7 {[%emt 0:00:39]} 37. Nc5 {[%emt 0:02:10]} Qc6 {[%emt 0:00:34]} 38. Nd3 {[%emt 0:00:14]} Qe6 {[%emt 0:00:33]} 39. Nc5 {[%emt 0:00:34]} Qc6 {[%emt 0:02:11]} 40. Nd3 {[%emt 0:00:14]} h6 {[%emt 0:00:29]} 41. Qf3 {[%emt 0:01:57]} Qb6 {[%emt 0:01:36]} 42. Qd1 {[%emt 0:00:10]} Qd6 {[%emt 0:01:31]} 43. Qf3 {[%emt 0:00:31]} Qb6 {[%emt 0:00:17]} 44. Qd1 {[%emt 0:00:03]} Qe6 {[%emt 0:00:46]} 45. Nc5 {[%emt 0:00:33]} Qc6 {[%emt 0:00:22]} 46. Nd3 {[%emt 0:00:26]} Qe6 {[%emt 0:01:49]} 1/2-1/2

[Event "28th Hit Open-A 2024"]
[Site "Nova Gorica"]
[Date "2024.01.29"]
[Round "5.33"]
[White "Guid, Taja"]
[Black "Horvath, Andras"]
[Result "0-1"]
[ECO "C24"]
[WhiteElo "1698"]
[BlackElo "1901"]
[Annotator "NA RC"]
[PlyCount "98"]
[EventDate "2024.01.22"]
[EventType "swiss"]
[EventCountry "SLO"]
[SourceTitle "playchess.com"]
[Source "ChessBase"]
[SourceQuality "1"]
[TimeControl "5400+30"]

1. e4 {[%emt 0:00:02]} e5 {[%emt 0:00:04]} 2. Bc4 {[%emt 0:00:05]} Nf6 {[%emt 0:00:04]} 3. d3 {[%emt 0:00:06]} c6 {[%emt 0:00:06]} 4. Nf3 {[%emt 0:00:39]} Be7 {[%emt 0:00:07]} 5. O-O {[%emt 0:00:15]} d6 {[%emt 0:00:10]} 6. Re1 {[%emt 0:03:10]} O-O {[%emt 0:00:10]} 7. Nbd2 {[%emt 0:00:35]} Re8 {[%emt 0:01:06]} 8. Nf1 {[%emt 0:01:00]} Bf8 {[%emt 0:01:43]} 9. Bb3 {[%emt 0:01:06]} Be6 {[%emt 0:03:38]} 10. Ng3 {[%emt 0:00:38]} Nbd7 {[%emt 0:00:43]} 11. c3 {[%emt 0:01:18]} Qc7 {[%emt 0:13:21]} 12. d4 {[%emt 0:06:33]} Rad8 {[%emt 0:02:05]} 13. d5 {[%emt 0:05:35]} cxd5 {[%emt 0:01:36]} 14. exd5 {[%emt 0:00:15]} Bg4 {[%emt 0:00:43]} 15. h3 {[%emt 0:00:22]} Bxf3 {[%emt 0:01:04]} 16. Qxf3 {[%emt 0:00:10]} Nc5 {[%emt 0:11:15]} 17. Bg5 {[%emt 0:05:30]} Be7 {[%emt 0:12:18]} 18. Bxf6 {[%emt 0:05:05]} Bxf6 {[%emt 0:00:17]} 19. Bc2 {[%emt 0:03:12]} Be7 {[%emt 0:07:15]} 20. Nh5 {[%emt 0:12:16]} g6 {[%emt 0:03:12]} 21. Ng3 {[%emt 0:04:11]} Bf8 {[%emt 0:04:18]} 22. h4 {[%emt 0:06:27]} Qe7 {[%emt 0:04:50]} 23. h5 {[%emt 0:02:28]} Qg5 {[%emt 0:01:47]} 24. hxg6 {[%emt 0:01:05]} hxg6 {[%emt 0:00:02]} 25. b4 {[%emt 0:01:08]} Nd7 {[%emt 0:01:46]} 26. Ba4 {[%emt 0:02:27]} f5 {[%emt 0:02:24]} 27. Ne2 {[%emt 0:05:52]} Re7 {[%emt 0:01:46]} 28. Bxd7 {[%emt 0:01:33]} Rexd7 {[%emt 0:01:01]} 29. g3 {[%emt 0:04:08]} Rc8 {[%emt 0:02:10]} 30. Kg2 {[%emt 0:01:05]} Rh7 {[%emt 0:06:29]} 31. Rh1 {[%emt 0:01:32]} Rcc7 {[%emt 0:00:06]} 32. a4 {[%emt 0:05:37]} Bh6 {[%emt 0:00:59]} 33. Qd3 {[%emt 0:04:21]} Qg4 {[%emt 0:03:02]} 34. Rh4 {[%emt 0:01:17]} e4 {[%emt 0:01:12]} 35. Qb5 {[%emt 0:10:38]} Qf3+ {[%emt 0:00:09]} 36. Kg1 {[%emt 0:00:05]} Bf8 {[%emt 0:07:08]} 37. Nd4 {[%emt 0:03:51]} Qxc3 {[%emt 0:00:31]} 38. Rd1 {[%emt 0:00:04]} Rxh4 {[%emt 0:00:41]} 39. gxh4 {[%emt 0:00:06]} Qh3 {[%emt 0:00:37]} 40. Qe2 {[%emt 0:03:45]} Qxh4 {[%emt 0:02:16]} 41. f3 {[%emt 0:00:28]} exf3 {[%emt 0:02:25]} 42. Qxf3 {[%emt 0:00:31]} Bg7 {[%emt 0:00:28]} 43. Ne6 {[%emt 0:00:34]} Rc2 {[%emt 0:00:46]} 44. Nxg7 {[%emt 0:00:39]} Kxg7 {[%emt 0:00:21]} 45. b5 {[%emt 0:00:25]} Rc4 {[%emt 0:00:48]} 46. Rd2 {[%emt 0:00:34]} Rg4+ {[%emt 0:00:35]} 47. Rg2 {[%emt 0:00:07]} Qe1+ {[%emt 0:00:16]} 48. Qf1 {[%emt 0:00:05]} Rxg2+ {[%emt 0:00:11]} 49. Kxg2 {[%emt 0:00:06]} Qxf1+ {[%emt 0:00:05]} 0-1